bitfinex/quotes_SOLUSD_20250918
["timestamp","ask_amount","ask_price","bid_price","bid_amount"]
[1758166546338,0.06,246.7,246.68,26.0]
[1758166546759,0.06,246.7,246.69,31.88]
[1758166547154,0.06,246.7,246.67,0.03]
[1758166547339,0.69,246.69,246.68,31.88]
[1758166547757,0.69,246.69,246.67,0.03]
[1758166548062,0.69,246.69,246.68,31.88]
[1758166548656,0.69,246.69,246.67,0.03]
[1758166548854,0.06,246.7,246.68,31.88]
[1758166549064,0.06,246.7,246.69,31.88]
[1758166549264,0.75,246.7,246.69,31.88]
[1758166549862,0.75,246.7,246.67,4.08396392]
[1758166550161,0.75,246.7,246.68,31.88]
[1758166550566,0.75,246.7,246.67,4.08396392]
[1758166550567,0.06,246.7,246.67,4.08396392]
[1758166550951,0.06,246.7,246.68,31.88]
[1758166551159,0.06,246.7,246.69,31.88]
[1758166551462,0.75,246.7,246.67,0.03]
[1758166551660,0.69,246.69,246.67,0.03]
[1758166551866,0.69,246.69,246.68,31.88]
[1758166552844,0.69,246.69,246.67,0.03]
[1758166553165,0.06,246.7,246.68,31.88]
[1758166553670,0.69,246.69,246.68,31.88]
[1758166554459,0.69,246.69,246.67,0.03]
[1758166554754,0.69,246.69,246.68,31.86]
[1758166555345,2.72778441,246.69,246.68,31.86]
[1758166555550,0.06,246.69,246.67,30.0839597]
[1758166555856,0.75,246.69,246.68,31.86]
[1758166556274,3.48123787,246.69,246.68,31.86]
[1758166556452,2.79123787,246.69,246.68,31.86]
[1758166557669,3.48123787,246.69,246.68,31.86]
[1758166558053,0.06,246.69,246.68,31.86]
[1758166558574,0.06,246.69,246.67,30.0839597]
[1758166558752,0.73,246.69,246.68,31.86]
[1758166559060,0.73,246.69,246.67,30.0839597]
[1758166559266,0.73,246.69,246.68,31.86]
[1758166559570,0.06,246.69,246.68,31.86]
[1758166559768,0.73,246.69,246.67,0.03]
[1758166560071,0.06,246.69,246.67,26.03]
[1758166560382,0.06,246.69,246.68,31.86]
[1758166560672,0.06,246.69,246.67,0.03]
[1758166560854,0.06,246.69,246.68,31.86]
[1758166561169,0.73,246.69,246.68,31.86]
[1758166562253,0.73,246.69,246.67,0.03]
[1758166562456,0.67,246.68,246.67,0.03]
[1758166563274,3.40180529,246.68,246.67,0.03]
[1758166564471,4.66522326,246.68,246.67,0.03]
[1758166566663,3.40180529,246.68,246.67,0.03]
[1758166568279,0.67,246.68,246.67,0.03]
[1758166568778,3.40180529,246.68,246.67,0.03]
[1758166569161,0.67,246.68,246.67,0.03]
[1758166570185,2.64244316,246.68,246.67,0.03]
[1758166570382,5.37424845,246.68,246.67,0.03]
[1758166572282,2.64244316,246.68,246.67,0.03]
[1758166573676,2.70244316,246.68,246.67,0.03]
[1758166574252,5.43424845,246.68,246.67,0.03]
[1758166574776,2.70244316,246.68,246.67,0.03]
[1758166574973,0.06,246.68,246.67,0.03]
[1758166577467,0.06,246.68,246.67,31.89]
[1758166578182,0.78,246.68,246.67,0.03]
[1758166585187,4.05399927,246.67,246.64,0.03]
[1758166585394,1.97244316,246.65,246.64,0.03]
[1758166585900,6.02677115,246.65,246.64,0.03]
[1758166586103,6.74677115,246.65,246.64,0.03]
[1758166586873,9.47304493,246.65,246.64,0.03]
[1758166587198,6.74677115,246.65,246.64,0.03]
[1758166587577,9.47304493,246.65,246.64,0.03]
[1758166587774,6.74677115,246.65,246.64,0.03]
[1758166588180,9.47304493,246.65,246.64,0.03]
[1758166588376,6.74677115,246.65,246.64,0.03]
[1758166588592,9.47304493,246.65,246.64,0.03]
[1758166588790,7.50060177,246.65,246.64,0.03]
[1758166590598,4.77432799,246.65,246.64,0.03]
[1758166591898,9.47304493,246.65,246.64,0.03]
[1758166592197,9.47304493,246.65,246.63,0.03]
[1758166592381,4.69871694,246.64,246.63,0.03]
[1758166592777,5.37871694,246.64,246.63,0.03]
[1758166593509,19.25863409,246.64,246.63,0.03]
[1758166598682,3.40627378,246.64,246.63,0.03]
[1758166600192,0.68,246.64,246.63,0.03]
[1758166600392,6.78060177,246.65,246.63,0.03]
[1758166600393,2.72627378,246.65,246.63,0.03]
[1758166600606,28.78627378,246.68,246.63,0.03]
[1758166600786,28.72627378,246.67,246.63,0.03]
[1758166600980,2.72627378,246.66,246.63,0.03]
[1758166601902,0.06,246.68,246.64,0.08]
[1758166602202,0.06,246.68,246.65,0.08]
[1758166603603,0.06,246.68,246.63,4.08463405]
[1758166603811,0.06,246.68,246.63,0.11]
[1758166604104,0.06,246.68,246.64,0.08]
[1758166604685,0.06,246.68,246.65,0.08]
[1758166605086,0.06,246.68,246.63,26.11]
[1758166605411,0.06,246.68,246.63,0.11]
[1758166605612,0.06,246.68,246.63,0.03]
[1758166606095,0.06,246.68,246.63,0.11]
[1758166606498,0.06,246.68,246.63,0.03]
[1758166606886,0.06,246.68,246.63,0.11]
[1758166608595,0.06,246.68,246.63,0.03]
[1758166611396,0.74,246.68,246.63,0.03]
[1758166612210,0.06,246.68,246.63,0.03]
[1758166612414,0.06,246.68,246.63,0.11]
[1758166612908,0.06,246.68,246.63,0.03]
[1758166613107,0.06,246.68,246.63,0.11]
[1758166613712,0.06,246.68,246.64,0.08]
[1758166615200,0.06,246.68,246.65,4.05432799]
[1758166615532,0.06,246.68,246.64,0.08]
[1758166615704,0.68,246.67,246.64,31.8]
[1758166615899,0.74,246.68,246.64,31.8]
[1758166616217,0.06,246.68,246.64,31.8]
[1758166616612,0.06,246.68,246.64,31.88]
[1758166617229,0.06,246.68,246.65,4.05432799]
[1758166617696,0.06,246.68,246.64,31.8]
[1758166618214,0.06,246.68,246.63,0.03]
[1758166618420,0.06,246.68,246.64,31.8]
[1758166618900,0.06,246.68,246.64,35.85444834]
[1758166620023,0.75,246.68,246.64,35.85444834]
[1758166620222,0.69,246.67,246.63,0.03]
[1758166620720,0.06,246.68,246.63,0.03]
[1758166620721,4.11389372,246.68,246.63,0.03]
[1758166620922,0.69,246.66,246.63,0.03]
[1758166621222,2.66244316,246.66,246.63,0.03]
[1758166621405,5.38871694,246.66,246.63,0.03]
[1758166621598,0.69,246.65,246.63,0.03]
[1758166621827,2.72627378,246.67,246.63,0.03]
[1758166622012,3.47627378,246.68,246.63,0.03]
[1758166622202,0.69,246.67,246.63,0.03]
[1758166622818,3.41627378,246.67,246.63,0.03]
[1758166623328,2.72627378,246.66,246.63,0.03]
[1758166623930,0.7,246.65,246.63,0.03]
[1758166624103,4.75441737,246.65,246.63,0.03]
[1758166624621,7.48069115,246.65,246.63,0.03]
[1758166624920,4.75441737,246.65,246.63,0.03]
[1758166625304,7.48069115,246.65,246.63,0.03]
[1758166625505,4.75441737,246.65,246.63,0.03]
[1758166625910,7.48069115,246.65,246.63,0.03]
[1758166626230,4.75441737,246.65,246.63,0.03]
[1758166626727,0.7,246.64,246.63,0.03]
[1758166630509,4.68897295,246.64,246.62,0.03]
[1758166630712,3.98897295,246.63,246.62,0.03]
[1758166631120,4.68897295,246.63,246.62,0.03]
[1758166631926,8.74362972,246.63,246.62,0.03]
[1758166634618,7.48093055,246.63,246.62,0.03]
[1758166634816,8.74362972,246.63,246.62,0.03]
[1758166636429,22.62354687,246.63,246.62,0.03]
[1758166637935,54.40354687,246.63,246.62,0.03]
[1758166640835,40.52362972,246.63,246.62,0.03]
[1758166641735,2.72627378,246.63,246.62,0.14]
[1758166641928,6.78033285,246.67,246.62,0.03]
[1758166642125,2.72627378,246.66,246.62,0.03]
[1758166642340,2.72627378,246.66,246.62,0.14]
[1758166642722,2.72627378,246.66,246.63,0.11]
[1758166642924,2.78627378,246.68,246.64,0.11]
[1758166643840,0.7,246.67,246.62,0.03]
[1758166644433,2.78627378,246.68,246.63,0.11]
[1758166644815,0.06,246.67,246.63,0.11]
[1758166645016,0.06,246.67,246.62,0.03]
[1758166645217,0.06,246.67,246.62,0.14]
[1758166645856,0.76,246.67,246.62,0.03]
[1758166646141,0.06,246.67,246.63,0.11]
[1758166646528,0.06,246.67,246.62,4.0847922]
[1758166646944,0.06,246.67,246.63,0.11]
[1758166647736,0.06,246.67,246.62,0.03]
[1758166647941,0.06,246.67,246.62,0.14]
[1758166648261,0.06,246.67,246.63,0.11]
[1758166648423,0.06,246.67,246.62,0.03]
[1758166648621,0.7,246.66,246.62,0.03]
[1758166648938,0.7,246.65,246.62,0.03]
[1758166649136,3.42627378,246.65,246.62,0.03]
[1758166649320,0.7,246.65,246.62,0.03]
[1758166649520,1.96269917,246.64,246.62,0.03]
[1758166649724,6.78093055,246.63,246.62,0.03]
[1758166650243,7.48093055,246.63,246.62,0.03]
[1758166652224,8.74362972,246.63,246.62,0.03]
[1758166654947,2.72627378,246.63,246.62,0.03]
[1758166655745,6.78081151,246.64,246.62,0.03]
[1758166656047,2.72627378,246.63,246.62,0.03]
[1758166659222,3.44627378,246.63,246.62,0.03]
[1758166659648,2.72627378,246.63,246.62,0.03]
[1758166660572,2.72627378,246.65,246.62,0.03]
[1758166660727,0.72,246.66,246.62,0.03]
[1758166660728,2.72627378,246.64,246.62,0.03]
[1758166660929,2.72627378,246.65,246.62,0.03]
[1758166661144,2.72627378,246.64,246.62,0.03]
[1758166661354,2.72627378,246.66,246.62,0.03]
[1758166661653,2.72627378,246.65,246.62,0.03]
[1758166661840,2.72627378,246.64,246.62,0.03]
[1758166662149,2.72627378,246.63,246.62,0.03]
[1758166662351,2.72627378,246.65,246.62,0.03]
[1758166662551,2.72627378,246.64,246.62,0.03]
[1758166662847,2.72627378,246.63,246.62,0.03]
[1758166663064,0.72,246.65,246.62,0.03]
[1758166663353,2.72627378,246.64,246.62,0.03]
[1758166663540,2.72627378,246.63,246.62,0.03]
[1758166663857,2.72627378,246.64,246.62,0.03]
[1758166664154,2.72627378,246.63,246.62,0.03]
[1758166664945,3.44627378,246.63,246.62,0.03]
[1758166665541,2.72627378,246.63,246.62,0.03]
[1758166666554,3.44627378,246.63,246.62,0.03]
[1758166667337,2.72627378,246.63,246.62,0.03]
[1758166667635,3.44627378,246.63,246.62,0.03]
[1758166680273,3.50627378,246.63,246.62,0.03]
[1758166682077,2.78627378,246.63,246.62,0.03]
[1758166682373,3.43627378,246.63,246.62,0.03]
[1758166683765,4.69897295,246.63,246.62,0.03]
[1758166684952,18.43672853,246.63,246.62,0.03]
[1758166685152,4.05482118,246.62,246.61,0.03]
[1758166685352,10.19422086,246.62,246.61,0.03]
[1758166685549,24.77413801,246.62,246.61,0.03]
[1758166685858,21.36101211,246.62,246.6,0.03]
[1758166686172,7.40225359,246.61,246.6,0.03]
[1758166686574,8.10225359,246.61,246.6,0.03]
[1758166689171,6.83955442,246.61,246.6,0.03]
[1758166689375,4.68897295,246.61,246.6,0.03]
[1758166689570,2.72627378,246.61,246.6,0.03]
[1758166690372,35.12627378,246.61,246.51,0.1]
[1758166690568,1.26269917,246.59,246.51,0.1]
[1758166690767,2.72627378,246.58,246.52,0.17]
[1758166690974,2.72627378,246.57,246.52,0.17]
[1758166691199,4.75502876,246.61,246.52,0.17]
[1758166691364,3.43011918,246.6,246.53,0.17]
[1758166691565,2.73011918,246.59,246.53,0.17]
[1758166691870,2.73011918,246.58,246.53,0.17]
[1758166692072,169.67356795,246.5,246.49,31.7]
[1758166693265,169.67356795,246.5,246.46,4.05745354]
[1758166693466,169.67356795,246.5,246.48,31.7]
[1758166695565,169.67356795,246.5,246.49,4.05695971]
[1758166697886,169.67356795,246.5,246.49,30.05695971]
[1758166698108,169.67356795,246.5,246.49,61.75695971]
[1758166698387,169.67356795,246.5,246.49,75.35255372]
[1758166698780,169.67356795,246.5,246.49,43.65255372]
[1758166698978,169.67356795,246.5,246.49,75.35255372]
[1758166704169,169.67356795,246.5,246.49,43.65255372]
[1758166704392,169.67356795,246.5,246.49,75.35255372]
[1758166704593,169.67356795,246.5,246.48,0.03]
[1758166704594,170.37356795,246.5,246.48,0.03]
[1758166704784,2.73188426,246.49,246.45,0.03]
[1758166704994,172.34743429,246.5,246.45,0.03]
[1758166705186,2.67386634,246.48,246.45,0.03]
[1758166705379,0.7,246.48,246.45,0.03]
[1758166709878,0.7,246.48,246.46,31.76]
[1758166710079,0.7,246.47,246.46,31.76]
[1758166710699,0.7,246.47,246.45,0.03]
[1758166710885,0.7,246.47,246.46,31.74]
[1758166715205,0.7,246.47,246.45,0.03]
[1758166715385,0.7,246.47,246.46,31.72]
[1758166715589,0.7,246.47,246.46,31.75]
[1758166717106,0.7,246.47,246.46,0.03]
[1758166720086,0.06,246.48,246.46,31.75]
[1758166720292,0.74,246.48,246.46,31.75]
[1758166720804,0.06,246.48,246.46,31.75]
[1758166721008,0.74,246.48,246.46,31.75]
[1758166721215,0.74,246.48,246.47,31.72]
[1758166722409,0.06,246.48,246.46,0.03]
[1758166722810,0.06,246.48,246.47,31.7]
[1758166723113,0.74,246.48,246.47,31.7]
[1758166723513,0.74,246.48,246.46,0.03]
[1758166723711,0.06,246.48,246.47,31.7]
[1758166724013,0.74,246.48,246.47,31.7]
[1758166725005,0.06,246.48,246.47,31.7]
[1758166725897,0.06,246.48,246.46,4.08730207]
[1758166726106,0.06,246.48,246.47,31.7]
[1758166728016,0.06,246.48,246.45,4.01974377]
[1758166728216,0.74,246.48,246.46,31.7]
[1758166728400,0.06,246.48,246.47,31.7]
[1758166729014,0.74,246.48,246.45,4.01974377]
[1758166729223,0.74,246.48,246.47,31.7]
[1758166731023,0.06,246.48,246.47,31.7]
[1758166731227,0.74,246.48,246.47,31.7]
[1758166731413,0.74,246.48,246.45,4.01974377]
[1758166731615,0.74,246.48,246.46,31.7]
[1758166732211,0.74,246.48,246.47,31.7]
[1758166734318,0.06,246.48,246.47,31.7]
[1758166738212,0.06,246.48,246.44,4.05778282]
[1758166738413,0.06,246.48,246.45,31.7]
[1758166738613,0.06,246.48,246.46,31.7]
[1758166739435,0.06,246.48,246.47,0.03]
[1758166740441,0.06,246.48,246.47,30.05728891]
[1758166740610,0.06,246.48,246.47,61.75728891]
[1758166744135,0.75,246.48,246.47,61.75728891]
[1758166744541,0.06,246.48,246.47,30.05728891]
[1758166744723,0.06,246.48,246.47,61.75728891]
[1758166746531,0.75,246.48,246.47,30.05728891]
[1758166746842,0.75,246.48,246.47,61.75728891]
[1758166748344,0.06,246.48,246.47,75.35288292]
[1758166748644,0.06,246.48,246.47,43.65288292]
[1758166748827,0.06,246.48,246.47,75.35288292]
[1758166750928,0.06,246.48,246.47,75.66720606]
[1758166751150,169.67356795,246.5,246.48,13.59559401]
[1758166751326,169.67356795,246.5,246.49,45.27559401]
[1758166752044,169.67356795,246.5,246.49,49.61687686]
[1758166752237,72.90555856,246.5,246.49,49.64687686]
[1758166752438,18.78678903,246.5,246.49,61.82343698]
[1758166752644,0.06,246.51,246.5,13.87991715]
[1758166752838,0.06,246.51,246.5,13.90991715]
[1758166753241,0.06,246.53,246.52,39.59559401]
[1758166753437,0.06,246.53,246.52,71.27559401]
[1758166754147,0.06,246.53,246.52,73.1833926]
[1758166755432,0.06,246.53,246.52,77.2398586]
[1758166756151,0.69,246.57,246.53,13.87991715]
[1758166756365,0.69,246.56,246.54,31.68]
[1758166756650,0.69,246.58,246.54,31.68]
[1758166757233,0.69,246.57,246.55,4.05597241]
[1758166757440,0.06,246.63,246.56,31.68]
[1758166757652,0.69,246.62,246.56,31.68]
[1758166757834,0.06,246.63,246.56,31.68]
[1758166758043,0.69,246.62,246.56,31.68]
[1758166758250,0.69,246.61,246.56,31.68]
[1758166758459,0.69,246.6,246.57,4.05564342]
[1758166758651,0.69,246.59,246.58,31.68]
[1758166759654,0.69,246.59,246.53,26.0]
[1758166759957,0.69,246.58,246.54,31.68]
[1758166760151,0.69,246.57,246.54,31.68]
[1758166760355,0.69,246.56,246.54,31.68]
[1758166760538,0.69,246.55,246.54,35.73607804]
[1758166760739,0.69,246.55,246.54,30.05607804]
[1758166761045,0.69,246.55,246.54,61.73607804]
[1758166764557,0.69,246.55,246.54,30.05607804]
[1758166764757,0.69,246.55,246.54,61.73607804]
[1758166767440,0.69,246.57,246.54,35.73607804]
[1758166767760,0.69,246.56,246.54,35.73607804]
[1758166768263,0.69,246.6,246.54,45.87642037]
[1758166768654,0.69,246.6,246.54,49.93096866]
[1758166768956,0.69,246.59,246.57,26.0]
[1758166769142,0.69,246.61,246.58,31.66]
[1758166769337,0.06,246.63,246.6,4.05515004]
[1758166769556,0.06,246.63,246.61,31.66]
[1758166770164,0.69,246.62,246.61,31.66]
[1758166773946,0.06,246.63,246.62,4.05482118]
[1758166774644,0.71,246.63,246.62,4.05482118]
[1758166775065,0.06,246.63,246.62,4.05482118]
[1758166775367,0.71,246.63,246.62,4.05482118]
[1758166776658,0.06,246.63,246.62,4.05482118]
[1758166777465,0.71,246.63,246.62,4.05482118]
[1758166779469,0.06,246.63,246.62,4.05482118]
[1758166780347,0.71,246.63,246.62,4.05482118]
[1758166782366,0.71,246.63,246.62,31.64]
[1758166783469,0.71,246.63,246.62,35.69482118]
[1758166787169,0.06,246.63,246.62,35.69482118]
[1758166787376,0.71,246.63,246.62,35.69482118]
[1758166789577,0.06,246.63,246.62,35.69482118]
[1758166790559,0.06,246.63,246.62,49.60473833]
[1758166791069,0.06,246.63,246.62,51.22748929]
[1758166791265,0.06,246.63,246.62,19.58748929]
[1758166791480,0.06,246.63,246.62,51.19748929]
[1758166791776,0.06,246.63,246.62,19.55748929]
[1758166791957,0.06,246.63,246.62,51.19748929]
[1758166792157,0.06,246.63,246.62,1.62275096]
[1758166792364,0.71,246.63,246.62,57.64]
[1758166792559,0.71,246.63,246.62,26.0]
[1758166792878,0.71,246.63,246.62,57.64]
[1758166796089,0.06,246.63,246.62,26.0]
[1758166796262,0.71,246.63,246.62,57.62]
[1758166796657,0.71,246.63,246.62,26.0]
[1758166796881,0.71,246.63,246.62,57.62]
[1758166797384,0.71,246.63,246.62,26.0]
[1758166797682,0.71,246.63,246.62,57.62]
[1758166798871,0.06,246.63,246.62,57.62]
[1758166800392,0.73,246.63,246.62,57.62]
[1758166803165,0.06,246.63,246.62,57.62]
[1758166803372,0.06,246.63,246.62,71.49991715]
[1758166803577,0.06,246.63,246.62,1.9070741]
[1758166803777,0.06,246.63,246.62,33.5270741]
[1758166804781,0.06,246.63,246.62,27.9070741]
[1758166804984,0.06,246.63,246.62,73.12266811]
[1758166809180,0.06,246.63,246.62,41.50266811]
[1758166809588,0.06,246.63,246.62,73.12266811]
[1758166810891,0.06,246.63,246.62,41.50266811]
[1758166811189,0.06,246.63,246.62,73.10266811]
[1758166811366,0.06,246.63,246.62,41.50266811]
[1758166811571,0.06,246.63,246.62,73.10266811]
[1758166811766,0.06,246.63,246.62,41.50266811]
[1758166811983,0.06,246.63,246.62,73.10266811]
[1758166812885,0.06,246.63,246.62,27.62275096]
[1758166813090,0.77,246.63,246.62,57.6]
[1758166813499,0.77,246.63,246.62,26.0]
[1758166813794,0.77,246.63,246.62,57.6]
[1758166815704,0.77,246.63,246.62,26.0]
[1758166815907,0.77,246.63,246.62,57.6]
[1758166816789,0.06,246.63,246.62,57.6]
[1758166817797,0.06,246.63,246.62,59.22288265]
[1758166818309,0.06,246.63,246.62,73.1027998]
[1758166821302,0.77,246.63,246.62,73.1027998]
[1758166821505,0.06,246.63,246.62,73.1027998]
[1758166823504,0.06,246.65,246.63,17.93457392]
[1758166823817,0.06,246.65,246.64,45.88536638]
[1758166824102,0.06,246.67,246.65,13.87991715]
[1758166824281,0.06,246.67,246.66,32.00541636]
[1758166824783,0.06,246.67,246.66,33.62777243]
[1758166825508,0.06,246.67,246.66,37.68193605]
[1758166827307,0.06,246.67,246.66,37.66193605]
[1758166831597,0.06,246.67,246.66,6.08193605]
[1758166832099,0.06,246.67,246.66,37.66193605]
[1758166834286,0.75,246.69,246.68,26.0]
[1758166834489,0.75,246.69,246.68,45.45991715]
[1758166835190,0.75,246.69,246.68,47.08227322]
[1758166835808,0.04,246.69,246.68,47.08227322]
[1758166836395,0.04,246.69,246.68,51.13610814]
[1758166836792,0.74,246.69,246.68,51.13610814]
[1758166837415,0.04,246.69,246.68,51.13610814]
[1758166837894,0.74,246.69,246.68,51.13610814]
[1758166840001,0.74,246.69,246.68,51.11610814]
[1758166841092,0.8,246.69,246.68,51.11610814]
[1758166850125,0.8,246.69,246.68,19.55610814]
[1758166850314,0.8,246.69,246.68,51.09610814]
[1758166852015,1e-08,246.69,246.68,51.50149163]
[1758166855543,1e-08,246.69,246.68,130.40149163]
[1758166855720,1e-08,246.69,246.68,129.99610814]
[1758166855926,1e-08,246.7,246.68,129.99610814]
[1758166856328,1e-08,246.7,246.68,128.37375207]
[1758166856640,1e-08,246.7,246.69,1.62215868]
[1758166856847,1e-08,246.7,246.69,2.02752573]
[1758166859036,0.70000001,246.7,246.69,2.02752573]
[1758166859230,9.0269364,246.69,246.68,96.86375207]
[1758166859436,9.7169364,246.69,246.68,96.86375207]
[1758166859625,9.7169364,246.69,246.68,128.40375207]
[1758166860138,9.7169364,246.69,246.68,138.12068847]
[1758166860744,1e-08,246.7,246.69,13.87991715]
[1758166861533,1e-08,246.71,246.69,93.2152842]
[1758166861725,0.06,246.73,246.72,26.0]
[1758166861928,0.06,246.73,246.72,57.52]
[1758166862328,1e-08,246.74,246.72,71.80523491]
[1758166862528,1e-08,246.74,246.72,73.02181274]
[1758166862731,1e-08,246.74,246.73,4.33733655]
[1758166863031,1e-08,246.74,246.73,35.85733655]
[1758166863521,0.70000001,246.74,246.73,30.33733655]
[1758166863730,0.70000001,246.74,246.73,61.85733655]
[1758166867619,0.70000001,246.74,246.73,31.95942945]
[1758166867840,0.70000001,246.74,246.73,63.47942945]
[1758166868634,1e-08,246.74,246.73,77.07502346]
[1758166869219,0.70000001,246.74,246.73,77.07502346]
[1758166869429,0.70000001,246.74,246.73,45.55502346]
[1758166869623,0.70000001,246.74,246.73,77.07502346]
[1758166870333,0.06,246.84,246.79,0.28432314]
[1758166870538,0.06,246.84,246.83,39.87991715]
[1758166870839,0.06,246.84,246.83,71.39991715]
[1758166871037,0.76,246.84,246.83,73.0212868]
[1758166871626,0.76,246.84,246.83,77.07265818]
[1758166871827,0.06,246.84,246.83,77.07265818]
[1758166872243,0.76,246.84,246.83,77.07265818]
[1758166873322,0.7,246.86,246.84,0.28432314]
[1758166873618,0.1,246.89,246.88,26.0]
[1758166873817,0.1,246.89,246.88,57.5]
[1758166874039,0.8,246.89,246.88,57.5]
[1758166874635,0.8,246.89,246.88,61.54926924]
[1758166875347,0.8,246.89,246.88,65.59982011]
[1758166876524,0.86,246.89,246.88,65.59982011]
[1758166877329,0.86,246.89,246.88,61.54926924]
[1758166878338,0.86,246.89,246.88,73.46510798]
[1758166879352,0.86,246.89,246.88,69.41583874]
[1758166881853,0.86,246.89,246.88,71.03727412]
[1758166892373,0.16,246.89,246.88,71.03727412]
[1758166892551,0.86,246.89,246.88,71.03727412]
[1758166894252,0.86,246.89,246.88,69.41583874]
[1758166896384,0.86,246.89,246.88,69.39583874]
[1758166897668,0.86,246.89,246.88,37.91583874]
[1758166899955,0.86,246.89,246.88,26.0]
[1758166900792,0.86,246.89,246.84,4.08110574]
[1758166900968,0.69,246.88,246.85,31.48]
[1758166901171,0.69,246.87,246.85,31.48]
[1758166901352,0.69,246.86,246.85,31.48]
[1758166902663,0.69,246.86,246.84,0.03]
[1758166903067,0.16,246.89,246.84,12.22860257]
[1758166903374,0.69,246.88,246.84,12.22860257]
[1758166903587,0.69,246.87,246.84,12.22860257]
[1758166903875,0.69,246.86,246.84,12.22860257]
[1758166904176,0.69,246.85,246.84,12.22860257]
[1758166908588,0.69,246.85,246.84,0.03]
[1758166909986,4.74104314,246.85,246.84,0.03]
[1758166910366,0.69,246.85,246.84,0.03]
[1758166914189,5.50578249,246.85,246.84,0.03]
[1758166914592,37.37114954,246.85,246.84,0.03]
[1758166914798,38.63018753,246.85,246.84,0.03]
[1758166915100,7.17018753,246.85,246.84,0.03]
[1758166915393,38.63018753,246.85,246.84,0.03]
[1758166916793,5.91114954,246.85,246.84,0.03]
[1758166917095,37.37114954,246.85,246.84,0.03]
[1758166919996,1.09536705,246.85,246.84,0.03]
[1758166920188,32.55536705,246.85,246.84,0.03]
[1758166920389,1.09536705,246.85,246.84,0.03]
[1758166920592,32.55536705,246.85,246.84,0.03]
[1758166921779,1.09536705,246.85,246.84,0.03]
[1758166922102,32.55536705,246.85,246.84,0.03]
[1758166922287,33.81440504,246.85,246.84,0.03]
[1758166922600,32.55536705,246.85,246.84,0.03]
[1758166922781,1.09536705,246.85,246.84,0.03]
[1758166922982,31.46,246.85,246.84,0.03]
[1758166923706,32.12,246.85,246.84,0.03]
[1758166924282,33.37903799,246.85,246.84,0.03]
[1758166925204,1.91903799,246.85,246.84,0.03]
[1758166925400,33.37903799,246.85,246.84,0.03]
[1758166926900,32.12,246.85,246.84,0.03]
[1758166927706,31.46,246.85,246.84,0.03]
[1758166928006,4.45627825,246.86,246.84,0.03]
[1758166928206,31.46,246.85,246.84,0.03]
[1758166929398,0.06,246.85,246.84,0.03]
[1758166929704,31.92536705,246.85,246.84,0.03]
[1758166930004,0.46536705,246.85,246.84,0.03]
[1758166930197,31.92536705,246.85,246.84,0.03]
[1758166931892,0.46536705,246.85,246.84,0.03]
[1758166932106,31.92536705,246.85,246.84,0.03]
[1758166932513,0.46536705,246.85,246.84,0.03]